bitfinex/quotes_BTCUSD_20240727
["timestamp","ask_amount","ask_price","bid_price","bid_amount"]
[1722109958816,9.36121284,68126.0,68125.0,90.81504978]
[1722109959262,9.50071284,68126.0,68125.0,90.47291662]
[1722109959493,9.50771284,68126.0,68125.0,90.11290626]
[1722109959772,9.53077332,68126.0,68125.0,88.95599626]
[1722109959998,9.38427332,68126.0,68125.0,88.94716297]
[1722109960246,10.33532288,68126.0,68125.0,88.90897168]
[1722109960503,10.32832288,68126.0,68125.0,88.78270639]
[1722109960746,10.33088404,68126.0,68125.0,88.77218839]
[1722109960963,10.33088404,68126.0,68125.0,88.71087035]
[1722109961186,10.33088404,68126.0,68125.0,88.55524706]
[1722109961437,10.33788404,68126.0,68125.0,88.54148706]
[1722109961685,10.33788404,68126.0,68125.0,88.52612706]
[1722109961910,10.33788404,68126.0,68125.0,88.49859706]
[1722109962103,10.33788404,68126.0,68125.0,88.46133306]
[1722109962649,10.44555994,68126.0,68125.0,88.23704776]
[1722109962872,10.43855994,68126.0,68125.0,88.22821447]
[1722109963135,10.43855994,68126.0,68125.0,88.19364447]
[1722109963393,10.2997402,68126.0,68125.0,88.19364447]
[1722109963615,10.32279904,68126.0,68125.0,88.19364447]
[1722109963869,10.32279904,68126.0,68125.0,88.18480973]
[1722109963870,10.30122062,68126.0,68125.0,88.18480973]
[1722109964100,10.21509061,68126.0,68125.0,88.17597973]
[1722109964347,10.30122821,68126.0,68125.0,88.17597973]
[1722109964607,10.30122821,68126.0,68125.0,88.1440909]
[1722109964608,10.2788192,68126.0,68125.0,88.1440909]
[1722109964872,9.19268792,68126.0,68125.0,88.1440909]
[1722109965130,10.38713949,68126.0,68125.0,88.1440909]
[1722109965383,9.82647749,68126.0,68125.0,88.1440909]
[1722109965866,9.86624653,68126.0,68125.0,88.1440909]
[1722109966103,8.85524653,68126.0,68125.0,88.1440909]
[1722109966348,8.54072486,68126.0,68125.0,88.1440909]
[1722109966591,8.49264851,68126.0,68125.0,88.1440909]
[1722109966835,8.48564851,68126.0,68125.0,88.1440909]
[1722109967075,8.4913544,68126.0,68125.0,88.1440909]
[1722109967301,8.4913544,68126.0,68125.0,88.1390909]
[1722109967557,8.4843544,68126.0,68125.0,88.1390909]
[1722109967783,3.6738404,68126.0,68125.0,88.1390909]
[1722109968014,3.9738404,68126.0,68125.0,88.1390909]
[1722109968537,4.2674134,68126.0,68125.0,88.1390909]
[1722109969700,4.19882648,68126.0,68125.0,88.1390909]
[1722109970000,4.3595469,68126.0,68125.0,88.1390909]
[1722109970237,4.3665469,68126.0,68125.0,88.1390909]
[1722109970465,4.4254269,68126.0,68125.0,88.1390909]
[1722109970689,4.4184269,68126.0,68125.0,88.1390909]
[1722109970891,4.4254269,68126.0,68125.0,88.1390909]
[1722109971097,4.4254269,68126.0,68125.0,88.1340909]
[1722109972643,4.5267769,68126.0,68125.0,88.1340909]
[1722109972840,5.22641779,68126.0,68125.0,88.1340909]
[1722109973128,5.12505437,68126.0,68125.0,88.1340909]
[1722109973333,5.52134737,68126.0,68125.0,88.1340909]
[1722109974310,5.81492037,68126.0,68125.0,88.0743709]
[1722109974829,5.83797447,68126.0,68125.0,88.0693709]
[1722109975825,5.87415709,68126.0,68125.0,88.0693709]
[1722109976017,5.94780007,68126.0,68125.0,88.0420219]
[1722109976245,5.94812479,68126.0,68125.0,88.0420219]
[1722109976971,5.98908416,68126.0,68125.0,87.9300509]
[1722109977172,5.99608416,68126.0,68125.0,87.91532286]
[1722109977373,5.99608416,68126.0,68125.0,87.88839286]
[1722109977595,5.99608416,68126.0,68125.0,87.87173286]
[1722109977802,5.99608416,68126.0,68125.0,87.78445286]
[1722109978232,6.91331816,68126.0,68125.0,87.71637286]
[1722109978648,4.83829919,68126.0,68125.0,87.71637286]
[1722109978847,5.92489681,68126.0,68125.0,87.71637286]
[1722109978964,5.68451319,68126.0,68125.0,87.71637286]
[1722109979162,4.83129919,68126.0,68125.0,87.71637286]
[1722109979364,4.8162715,68126.0,68125.0,87.71637286]
[1722109979583,5.6227335,68126.0,68125.0,87.71637286]
[1722109979777,5.6157335,68126.0,68125.0,87.71637286]
[1722109980238,5.6227335,68126.0,68125.0,87.71637286]
[1722109980413,3.7012335,68126.0,68125.0,87.71637286]
[1722109980622,3.78082138,68126.0,68125.0,87.71637286]
[1722109980857,3.05867538,68126.0,68125.0,87.71637286]
[1722109981058,3.00239574,68126.0,68125.0,87.71637286]
[1722109981322,2.96721087,68126.0,68125.0,87.71637286]
[1722109981518,2.79851185,68126.0,68125.0,87.71637286]
[1722109981726,3.26305787,68126.0,68125.0,87.71637286]
[1722109982335,3.33305787,68126.0,68125.0,87.71637286]
[1722109982484,3.35611275,68126.0,68125.0,87.71637286]
[1722109982701,3.34911275,68126.0,68125.0,87.71637286]
[1722109982952,1.81477987,68126.0,68125.0,87.71637286]
[1722109983116,1.85265457,68126.0,68125.0,87.85747286]
[1722109983485,1.80925657,68126.0,68125.0,87.85747286]
[1722109983684,1.50868357,68126.0,68125.0,87.85747286]
[1722109983887,1.51568357,68126.0,68125.0,87.85747286]
[1722109984284,1.12071485,68126.0,68125.0,87.85747286]
[1722109984485,1.11115369,68126.0,68125.0,87.85747286]
[1722109984621,1.11042835,68126.0,68125.0,87.85747286]
[1722109984822,1.11742835,68126.0,68125.0,87.85747286]
[1722109985008,1.11727612,68126.0,68125.0,87.85747286]
[1722109985886,0.92370312,68126.0,68125.0,87.85747286]
[1722109986106,0.23081643,68126.0,68125.0,87.85747286]
[1722109986306,0.52438943,68126.0,68125.0,87.85747286]
[1722109986556,0.58325243,68126.0,68125.0,87.85747286]
[1722109987000,0.09875043,68126.0,68125.0,87.85747286]
[1722109987211,0.53910943,68126.0,68125.0,88.00387286]
[1722109987404,0.09875043,68126.0,68125.0,88.00387286]
[1722109987605,0.23853643,68126.0,68125.0,88.00387286]
[1722109987853,0.53653372,68126.0,68125.0,88.00387286]
[1722109988033,0.24296072,68126.0,68125.0,88.00387286]
[1722109988406,0.09617472,68126.0,68125.0,88.00387286]
[1722109988626,0.24296072,68126.0,68125.0,88.00387286]
[1722109989054,0.01287472,68126.0,68125.0,88.00387286]
[1722109989268,0.16934346,68128.0,68126.0,0.0806]
[1722109989269,0.06807704,68127.0,68126.0,0.0806]
[1722109989591,0.06807704,68127.0,68125.0,87.71637286]
[1722109989592,1.027505,68126.0,68125.0,87.71637286]
[1722109989796,1.09557148,68126.0,68125.0,87.71637286]
[1722109989962,0.80199848,68126.0,68125.0,88.00387286]
[1722109990135,0.06806648,68126.0,68125.0,88.15413243]
[1722109990360,0.21985248,68126.0,68125.0,88.15413243]
[1722109990611,0.21985248,68126.0,68125.0,88.00387286]
[1722109990818,0.00886472,68126.0,68125.0,88.00387286]
[1722109991046,0.00084,68131.0,68130.0,0.435334]
[1722109991260,0.293481,68148.0,68138.0,0.1486]
[1722109991419,0.058848,68139.0,68138.0,0.0655]
[1722109991634,0.293495,68145.0,68140.0,0.0655]
[1722109991839,0.46329915,68141.0,68140.0,0.20254917]
[1722109991995,1.05031715,68141.0,68140.0,0.20254917]
[1722109992208,1.05031715,68141.0,68140.0,0.1486]
[1722109992209,1.10380963,68141.0,68140.0,0.1486]
[1722109992612,0.81030063,68141.0,68140.0,0.1486]
[1722109992819,0.86915163,68141.0,68140.0,0.1486]
[1722109994079,0.86886463,68141.0,68140.0,0.1486]
[1722109994303,0.87286463,68141.0,68140.0,0.1486]
[1722109994503,0.89674745,68141.0,68140.0,0.1486]
[1722109994723,0.89274745,68141.0,68140.0,0.1486]
[1722109994941,0.89674745,68141.0,68140.0,0.1486]
[1722109996294,0.89274745,68141.0,68140.0,0.1486]
[1722109996520,0.89563445,68141.0,68140.0,0.1486]
[1722109997174,0.84254229,68141.0,68140.0,0.1486]
[1722109997389,0.89566937,68141.0,68140.0,0.1486]
[1722109998011,1.38917837,68141.0,68140.0,0.1486]
[1722109998834,1.36613523,68141.0,68140.0,0.1486]
[1722109999040,1.41412753,68141.0,68140.0,0.0831]
[1722109999244,1.75103547,68141.0,68140.0,0.0831]
[1722109999452,1.70763653,68141.0,68140.0,0.0831]
[1722109999655,1.70763653,68141.0,68136.0,0.0655]
[1722109999656,1.027341,68137.0,68136.0,0.0655]
[1722109999855,1.12846038,68137.0,68136.0,0.0655]
[1722110000293,0.10111938,68137.0,68134.0,0.0831]
[1722110000502,0.346778,68130.0,68129.0,0.0655]
[1722110000713,1.03382592,68130.0,68129.0,0.0655]
[1722110000914,1.32441602,68130.0,68129.0,0.0655]
[1722110001932,1.32441602,68130.0,68125.0,87.71637286]
[1722110001933,0.733932,68126.0,68125.0,87.71637286]
[1722110002139,0.83090202,68126.0,68125.0,87.71637286]
[1722110002344,1.12447502,68126.0,68125.0,87.71637286]
[1722110003060,1.11947502,68126.0,68125.0,87.71637286]
[1722110003470,1.1196742,68126.0,68125.0,87.71637286]
[1722110003886,1.0695314,68126.0,68125.0,87.71637286]
[1722110004096,1.12161575,68126.0,68125.0,87.71637286]
[1722110006544,1.18803014,68126.0,68125.0,87.71637286]
[1722110006746,1.14466526,68126.0,68125.0,87.71637286]
[1722110006949,1.27265046,68126.0,68125.0,87.71637286]
[1722110007150,1.12161575,68126.0,68125.0,87.71637286]
[1722110007984,0.82804275,68126.0,68125.0,87.71637286]
[1722110008611,0.53446975,68126.0,68125.0,87.86663243]
[1722110008767,0.53446975,68126.0,68125.0,87.86497286]
[1722110009372,0.09911075,68126.0,68125.0,87.86497286]
[1722110010230,0.24589675,68126.0,68125.0,87.86497286]
[1722110010432,0.09911075,68126.0,68125.0,87.86497286]
[1722110010748,0.12015812,68126.0,68125.0,88.01523243]
[1722110010967,0.12115812,68126.0,68125.0,88.01523243]
[1722110011428,0.07513172,68126.0,68125.0,88.45559743]
[1722110011893,0.02304737,68126.0,68125.0,88.74917443]
[1722110012340,0.35871675,68145.0,68125.0,88.74917443]
[1722110012341,0.146757,68140.0,68139.0,0.264]
[1722110012547,0.10424553,68140.0,68139.0,0.29691]
[1722110013189,0.10391471,68140.0,68139.0,0.29691]
[1722110013638,0.10391471,68140.0,68139.0,0.264]
[1722110013639,0.0535056,68140.0,68139.0,0.264]
[1722110013859,0.10389749,68140.0,68139.0,0.264]
[1722110014071,0.10389749,68140.0,68139.0,0.263]
[1722110014928,0.10489749,68140.0,68139.0,0.268]
[1722110015106,0.10489749,68140.0,68139.0,0.2738766]
[1722110015318,0.10389749,68140.0,68139.0,0.3349766]
[1722110015696,0.05139189,68140.0,68139.0,0.4877346]
[1722110015915,0.10644721,68140.0,68139.0,0.4877346]
[1722110016324,0.05213836,68140.0,68139.0,0.7812516]
[1722110016573,0.05213836,68140.0,68139.0,1.0747686]
[1722110016751,0.05213836,68140.0,68139.0,1.0687686]
[1722110016944,0.05113836,68140.0,68139.0,1.0687686]
[1722110017305,0.05884,68149.0,68142.0,0.1472]
[1722110017473,0.00146654,68148.0,68143.0,0.04028363]
[1722110017887,0.146733,68151.0,68143.0,0.03928363]
[1722110018125,0.146733,68151.0,68146.0,0.1463]
[1722110018329,0.146729,68153.0,68147.0,0.0811]
[1722110018540,0.05596605,68152.0,68148.0,0.04134306]
[1722110018689,0.146735,68150.0,68148.0,0.04034306]
[1722110018891,0.146731,68152.0,68148.0,0.04034306]
[1722110019297,0.146734,68151.0,68148.0,0.04034306]
[1722110019847,0.146731,68152.0,68148.0,0.04034306]
[1722110020148,0.146729,68153.0,68148.0,0.04034306]
[1722110021666,0.146729,68153.0,68149.0,0.04154881]
[1722110021889,0.058838,68154.0,68150.0,0.0653]
[1722110022074,0.16206386,68156.0,68153.0,0.1463]
[1722110022291,0.01534086,68156.0,68154.0,0.14403435]
[1722110022505,0.058831,68158.0,68155.0,0.0758]
[1722110022720,0.02302476,68165.0,68158.0,0.1411]
[1722110022923,0.043459,68161.0,68158.0,0.1411]
[1722110023129,0.043459,68161.0,68159.0,0.0581267]
[1722110023351,0.02302476,68165.0,68159.0,0.0581267]
[1722110023560,0.52195676,68165.0,68164.0,0.1463]
[1722110023785,0.440146,68159.0,68158.0,0.1411]
[1722110024473,0.733577,68159.0,68158.0,0.1411]
[1722110024685,0.81555532,68159.0,68158.0,0.1411]
[1722110024916,0.79251852,68159.0,68158.0,0.1411]
[1722110025346,0.83829557,68159.0,68158.0,0.1411]
[1722110025557,0.79251852,68159.0,68158.0,0.1421]
[1722110026202,0.79251852,68159.0,68158.0,0.1411]
[1722110027040,0.733577,68159.0,68158.0,0.1411]
[1722110027388,0.79395535,68159.0,68158.0,0.1411]
[1722110027604,0.79395535,68159.0,68158.0,0.0758]
[1722110028030,0.79395535,68159.0,68158.0,0.0768]
[1722110028238,0.81699286,68159.0,68158.0,0.0768]
[1722110028679,0.79395535,68159.0,68158.0,0.0768]
[1722110031619,0.81699262,68159.0,68158.0,0.0768]
[1722110038562,0.52356162,68159.0,68158.0,0.0768]
[1722110038776,0.52356162,68159.0,68158.0,0.09101]
[1722110038777,0.08341562,68159.0,68158.0,0.09101]
[1722110038937,0.08341562,68159.0,68158.0,0.15421]
[1722110039507,0.06037835,68159.0,68158.0,0.15421]
[1722110040050,0.06037835,68162.0,68158.0,0.15421]
[1722110040249,0.06037835,68161.0,68158.0,0.15421]
[1722110040453,0.06037835,68160.0,68158.0,0.15421]
[1722110040667,0.06037835,68159.0,68158.0,0.15421]
[1722110040871,0.06037835,68159.0,68158.0,0.139]
[1722110041328,0.146714,68160.0,68158.0,0.139]
[1722110041540,0.06037835,68159.0,68158.0,0.139]
[1722110041743,0.06037835,68160.0,68158.0,0.139]
[1722110041916,0.06137835,68159.0,68158.0,0.147]
[1722110042096,0.001,68159.0,68158.0,0.147]
[1722110042312,0.146709,68162.0,68158.0,0.147]
[1722110042313,0.06037835,68161.0,68158.0,0.139]
[1722110042719,0.0230362,68161.0,68158.0,0.139]
[1722110042960,0.06314195,68160.0,68158.0,0.139]
[1722110043165,0.00255775,68177.0,68160.0,0.0816]
[1722110043372,0.06770848,68194.0,68180.0,0.293338]
[1722110043586,0.06770848,68194.0,68190.0,0.07512979]
[1722110043587,0.058807,68194.0,68190.0,0.07512979]
[1722110043825,0.06770848,68193.0,68190.0,0.0816]
[1722110044055,0.08695217,68199.0,68190.0,0.0816]
[1722110044056,0.00827,68210.0,68190.0,0.753698]
[1722110044281,0.058798,68204.0,68201.0,0.1463]
[1722110044493,0.146614,68206.0,68201.0,0.1403]
[1722110044704,0.058795,68207.0,68201.0,0.1403]
[1722110044920,0.146615,68206.0,68201.0,0.1403]
[1722110045133,0.301483,68210.0,68201.0,0.1403]
[1722110045278,0.10969021,68202.0,68201.0,0.1403]
[1722110045941,0.293251,68201.0,68194.0,0.1463]
[1722110046141,0.10969021,68202.0,68194.0,0.1463]
[1722110046142,0.001,68202.0,68194.0,0.1463]
[1722110046395,0.293253,68201.0,68194.0,0.22087786]
[1722110046590,0.293246,68202.0,68194.0,0.22087786]
[1722110046795,0.146628,68200.0,68194.0,0.22087786]
[1722110047013,0.146629,68199.0,68194.0,0.17772491]
[1722110047213,0.146629,68199.0,68194.0,0.1463]
[1722110047575,0.146638,68195.0,68194.0,0.011]
[1722110047785,0.73319,68195.0,68194.0,0.011]
[1722110047987,0.07512979,68201.0,68187.0,0.01207757]
[1722110047988,0.146652,68189.0,68187.0,0.01207757]
[1722110048206,0.2,68204.0,68187.0,0.1463]
[1722110048408,0.1,68203.0,68188.0,0.02279]
[1722110048611,0.04537491,68202.0,68201.0,0.1463]
[1722110048848,0.04537491,68203.0,68201.0,0.1463]
[1722110049085,0.1,68211.0,68201.0,0.1463]
[1722110049284,0.19228778,68208.0,68207.0,0.1463]
[1722110049483,0.14661,68208.0,68207.0,0.1463]
[1722110049684,0.00827,68210.0,68207.0,0.1463]
[1722110049889,0.002,68209.0,68207.0,0.1463]
[1722110050494,0.148608,68209.0,68207.0,0.1463]
[1722110050707,0.14661,68208.0,68207.0,0.1463]
[1722110050918,0.002,68209.0,68207.0,0.1463]
[1722110050919,0.002,68209.0,68207.0,0.22413]
[1722110051132,0.002,68209.0,68207.0,0.30782225]
[1722110051354,0.002,68209.0,68208.0,0.04104879]
[1722110051579,0.002,68209.0,68208.0,0.08369225]
[1722110051779,0.002,68209.0,68208.0,0.12364346]
[1722110052029,0.002,68209.0,68207.0,0.001]
[1722110052030,0.295216,68209.0,68207.0,0.001]
[1722110052190,0.43983,68208.0,68207.0,0.001]
[1722110052364,0.002,68209.0,68207.0,0.001]
[1722110052579,0.002,68209.0,68208.0,0.2273]
[1722110052809,0.002,68209.0,68208.0,0.48314798]
[1722110053005,0.002,68209.0,68208.0,0.73213]
[1722110053204,0.002,68209.0,68208.0,0.52312966]
[1722110053377,0.002,68209.0,68208.0,0.81634966]
[1722110053775,0.002,68209.0,68208.0,0.49048412]
[1722110053975,0.002,68209.0,68208.0,0.48948412]
[1722110054192,0.002,68209.0,68208.0,0.63609412]
[1722110054405,0.002,68209.0,68208.0,0.49948412]
[1722110054586,0.002,68209.0,68208.0,0.93931412]
[1722110054841,0.002,68209.0,68208.0,0.92931412]
[1722110055054,0.002,68209.0,68208.0,0.63609412]
[1722110055275,0.002,68209.0,68208.0,0.49948412]
[1722110055493,0.002,68209.0,68208.0,0.64609412]
[1722110056081,0.002,68209.0,68208.0,0.69609412]
[1722110056545,0.002,68209.0,68208.0,0.68609412]
[1722110056746,0.002,68209.0,68208.0,0.69909412]
[1722110057156,0.002,68209.0,68208.0,0.55248412]
[1722110057319,0.002,68209.0,68208.0,0.53948412]
[1722110057651,0.002,68209.0,68208.0,0.55348412]
[1722110058098,0.00284,68209.0,68208.0,0.53948412]
[1722110058313,0.00284,68209.0,68208.0,0.44051966]
[1722110058901,0.00284,68209.0,68208.0,0.58712966]
[1722110059369,0.00827,68210.0,68209.0,0.146608]
[1722110059594,0.00827,68210.0,68209.0,0.52786047]
[1722110059804,0.00827,68210.0,68209.0,0.3599705]
[1722110059986,0.00827,68210.0,68209.0,0.17225613]
[1722110060209,0.00827,68210.0,68209.0,0.31886413]
[1722110060746,0.00827,68210.0,68209.0,0.17225613]
[1722110061175,0.00827,68210.0,68209.0,0.09821966]
[1722110061593,0.00827,68210.0,68209.0,0.08421966]
[1722110061977,0.00827,68210.0,68209.0,0.24482766]
[1722110062187,0.00827,68210.0,68209.0,0.53804366]
[1722110062392,0.00827,68210.0,68209.0,0.56104366]
[1722110062592,0.00827,68210.0,68209.0,0.65137803]
[1722110062914,0.00827,68210.0,68209.0,0.21155403]
[1722110063258,0.00827,68210.0,68209.0,0.35816203]
[1722110064172,0.00827,68210.0,68209.0,0.63737803]
[1722110064378,0.00827,68210.0,68209.0,0.55315837]
[1722110064588,0.00827,68210.0,68209.0,0.56715837]
[1722110064995,0.00827,68210.0,68209.0,0.55315837]
[1722110065175,0.00827,68210.0,68209.0,0.56715837]
[1722110066577,0.03128634,68210.0,68209.0,0.11333437]
[1722110067025,0.03128634,68210.0,68209.0,0.27394237]
[1722110067456,0.03128634,68210.0,68209.0,0.12733437]
[1722110067867,0.03128634,68210.0,68209.0,0.25994237]
[1722110068043,0.03128634,68210.0,68209.0,0.27394237]
[1722110069474,0.03128634,68210.0,68209.0,0.56715837]
[1722110069697,0.03128634,68210.0,68209.0,0.27394237]
[1722110070107,0.03128634,68210.0,68209.0,0.86037437]
[1722110070299,0.03128634,68210.0,68209.0,0.56715837]
[1722110070637,0.00827,68210.0,68209.0,0.56715837]
[1722110070840,0.00827,68210.0,68209.0,0.55315837]
[1722110071050,0.03128529,68210.0,68209.0,0.55315837]
[1722110071248,0.03128529,68210.0,68209.0,0.56715837]
[1722110071527,0.03128529,68210.0,68209.0,0.27394237]
[1722110071528,0.00827,68210.0,68209.0,0.27394237]
[1722110071707,0.00827,68210.0,68209.0,0.25994237]
[1722110072053,0.00827,68210.0,68209.0,0.27394237]
[1722110072373,0.002,68219.0,68210.0,0.076]
[1722110072582,0.002,68229.0,68222.0,0.43974]
[1722110072760,0.002,68229.0,68222.0,0.29288]
[1722110073004,0.002,68229.0,68222.0,0.2693]
[1722110073195,0.002,68229.0,68222.0,0.3167976]
[1722110073196,0.295132,68229.0,68222.0,0.3167976]
[1722110073569,0.20258275,68228.0,68222.0,0.3167976]
[1722110073802,0.04774575,68227.0,68222.0,0.3167976]
[1722110073967,0.154837,68228.0,68222.0,0.3167976]
[1722110074155,0.04681997,68227.0,68222.0,0.3167976]
[1722110074521,0.02451073,68223.0,68222.0,0.3167976]
[1722110074783,0.0015,68223.0,68222.0,0.6565376]
[1722110075106,0.002,68229.0,68228.0,0.732835]
[1722110075299,0.002,68239.0,68228.0,0.2655]
[1722110075428,0.002,68239.0,68236.0,0.58595]
[1722110075631,0.002,68239.0,68238.0,0.582136]
[1722110075840,0.002,68239.0,68238.0,0.076]
[1722110076019,0.002,68239.0,68238.0,0.1364912]
[1722110076020,0.02500639,68239.0,68238.0,0.1364912]
[1722110076227,0.02500639,68239.0,68236.0,0.1693]
[1722110076228,0.02500639,68239.0,68236.0,0.1463]
[1722110076489,0.002,68239.0,68236.0,0.1463]
[1722110077485,0.04464911,68238.0,68236.0,0.1463]
[1722110078985,0.002,68239.0,68238.0,0.222545]
[1722110079189,0.002,68239.0,68238.0,0.099]
[1722110079413,0.02500508,68239.0,68238.0,0.15492454]
[1722110080309,0.00826,68251.0,68238.0,0.22142454]
[1722110080550,0.04484772,68248.0,68245.0,0.1463]
[1722110080790,0.04484772,68248.0,68246.0,0.01463]
[1722110081016,0.00826,68251.0,68246.0,0.01463]
[1722110081450,0.002,68259.0,68248.0,0.359548]
[1722110081699,0.002,68259.0,68257.0,0.1463]
[1722110081915,0.002,68259.0,68258.0,0.01463]
[1722110082347,0.002,68259.0,68258.0,0.09063]
[1722110082548,0.002,68259.0,68258.0,0.11363]
[1722110083182,0.002,68259.0,68258.0,0.270132]
[1722110083391,0.002,68259.0,68258.0,0.336632]
[1722110083599,0.002,68259.0,68258.0,0.19013]
[1722110084013,0.002,68259.0,68258.0,0.03643582]
[1722110084226,0.002,68259.0,68258.0,0.02180582]
[1722110084441,0.002,68259.0,68258.0,0.01180582]
[1722110084647,0.002,68259.0,68257.0,0.1463]
[1722110084648,0.439507,68258.0,68257.0,0.1463]
[1722110084856,0.14769917,68258.0,68257.0,0.1463]
[1722110085058,0.14769917,68258.0,68257.0,0.16093]
[1722110085258,0.732512,68258.0,68257.0,0.1463]
[1722110085467,0.146517,68251.0,68250.0,0.1463]
[1722110085674,0.293023,68254.0,68250.0,0.2463]
[1722110085675,0.1480692,68253.0,68250.0,0.2463]
[1722110085882,0.146516,68252.0,68250.0,0.15839184]
[1722110086121,0.1480682,68253.0,68250.0,0.15839184]
[1722110086332,0.146516,68252.0,68250.0,0.15839184]
[1722110086775,0.146512,68254.0,68250.0,0.15839184]
[1722110086995,0.146514,68253.0,68250.0,0.15839184]
[1722110087200,0.002,68259.0,68251.0,0.16980218]
[1722110087410,0.1485,68259.0,68258.0,0.1463]
[1722110087618,0.441501,68259.0,68258.0,0.1463]
[1722110088271,0.4645006,68259.0,68258.0,0.1463]
[1722110088677,0.441501,68259.0,68258.0,0.1463]
[1722110089345,0.002,68259.0,68258.0,0.17307324]
[1722110089670,0.002,68259.0,68258.0,0.18107324]
[1722110090168,0.1485,68259.0,68258.0,0.18107324]
[1722110090859,0.14934,68259.0,68258.0,0.18107324]
[1722110091013,0.00284,68259.0,68258.0,0.18107324]
[1722110091220,0.00284,68259.0,68258.0,0.15844324]
[1722110091498,0.00284,68259.0,68258.0,0.16744324]
[1722110091727,0.14934,68259.0,68258.0,0.16744324]
[1722110091927,0.02583937,68259.0,68258.0,0.16744324]
[1722110092128,0.14934,68259.0,68258.0,0.16744324]
[1722110092255,0.14934,68259.0,68258.0,0.15844324]
[1722110092476,0.14934,68259.0,68258.0,0.16744324]
[1722110092477,0.17233903,68259.0,68258.0,0.16744324]
[1722110092675,0.14934,68259.0,68258.0,0.16744324]
[1722110092878,0.14934,68259.0,68258.0,0.15844324]
[1722110093079,0.14934,68259.0,68258.0,0.26048756]
[1722110093080,0.00284,68259.0,68258.0,0.26048756]
[1722110093398,0.00284,68259.0,68258.0,0.36048756]
[1722110094353,0.00284,68259.0,68258.0,0.35148756]
[1722110094764,0.00284,68259.0,68258.0,0.36048756]
[1722110095184,0.00284,68259.0,68258.0,0.35148756]
[1722110095622,0.00826,68260.0,68259.0,0.1465]
[1722110095823,0.00826,68260.0,68259.0,0.93800236]
[1722110096450,0.00826,68270.0,68263.0,0.292982]
[1722110096688,0.00826,68270.0,68268.0,0.1463]
[1722110097545,0.00826,68270.0,68268.0,0.585744]
[1722110097753,0.00826,68270.0,68268.0,0.608744]
[1722110097959,0.00826,68270.0,68268.0,0.7055447]
[1722110098993,0.00826,68270.0,68268.0,1.0125077]
[1722110099455,0.00826,68270.0,68268.0,0.3895817]
[1722110099656,0.00826,68270.0,68268.0,0.2431007]
[1722110099853,0.00826,68270.0,68268.0,0.1463]
[1722110100046,0.0035542,68269.0,68268.0,0.1463]
[1722110100248,0.137,68268.0,68259.0,0.1]
[1722110100460,0.07512979,68260.0,68251.0,0.0772]
[1722110100707,0.07512979,68260.0,68240.0,0.29308]
[1722110100708,0.076,68258.0,68242.0,0.0663]
[1722110100931,0.146518,68251.0,68243.0,0.02126]
[1722110101150,0.04448076,68250.0,68243.0,0.02126]
[1722110101418,0.04448076,68249.0,68243.0,0.02126]
[1722110101617,0.0015542,68257.0,68240.0,0.15822995]
[1722110101872,0.293065,68245.0,68240.0,0.01192995]
[1722110102084,0.04468451,68244.0,68240.0,0.01192995]
[1722110102292,0.04468451,68244.0,68243.0,0.005]
[1722110102507,0.02299005,68253.0,68243.0,0.166663]
[1722110102724,0.293038,68251.0,68243.0,0.02013]
[1722110102928,0.04420525,68250.0,68243.0,0.02013]
[1722110103180,0.19072825,68249.0,68243.0,0.02013]
[1722110103349,0.04420525,68248.0,68243.0,0.005]
[1722110103561,0.04420525,68247.0,68244.0,0.293065]
[1722110103760,0.02299005,68253.0,68246.0,0.1873]
[1722110103966,0.02299005,68253.0,68250.0,0.0772]
[1722110105317,0.02299005,68253.0,68249.0,0.07512979]
[1722110105514,0.02299005,68253.0,68250.0,0.01]
[1722110105515,0.04442823,68252.0,68250.0,0.01]
[1722110106306,0.02299005,68253.0,68251.0,0.146517]
[1722110106513,0.02299005,68253.0,68248.0,0.07512979]
[1722110106514,0.02299005,68253.0,68252.0,0.1]
[1722110106717,0.02299005,68253.0,68248.0,0.07512979]
[1722110107502,0.04394548,68252.0,68248.0,0.07512979]
[1722110107704,0.04394548,68252.0,68249.0,0.01]
[1722110107705,0.43956,68250.0,68249.0,0.01]
[1722110107933,0.77654548,68250.0,68249.0,0.01]
[1722110108156,0.33698548,68250.0,68234.0,0.01204522]
[1722110108380,0.146546,68238.0,68234.0,0.01204522]
[1722110108607,0.33699148,68249.0,68227.0,0.15232979]
[1722110108608,0.04394548,68237.0,68227.0,0.15232979]
[1722110108815,0.293046,68249.0,68235.0,0.07512979]
[1722110108816,0.04394548,68236.0,68235.0,0.07512979]
[1722110109027,0.137,68251.0,68235.0,0.26242979]
[1722110109204,0.137,68251.0,68249.0,0.001]
[1722110109205,0.04441201,68250.0,68249.0,0.001]
[1722110109410,0.19093201,68250.0,68249.0,0.001]
[1722110109870,0.14652,68250.0,68249.0,0.001]
[1722110110105,0.19092715,68250.0,68249.0,0.001]
[1722110110344,0.14652,68250.0,68249.0,0.001]
[1722110110615,0.19077495,68250.0,68244.0,0.07512979]
[1722110110841,0.146535,68243.0,68235.0,0.08912979]
[1722110111067,0.08720225,68242.0,68235.0,0.08912979]
[1722110111285,0.23374225,68241.0,68235.0,0.08912979]
[1722110111517,0.06525007,68250.0,68232.0,0.1]
[1722110111518,0.08720225,68240.0,68232.0,0.1]
[1722110111745,0.08720225,68240.0,68219.0,0.188224]
[1722110111746,0.146572,68226.0,68219.0,0.000924]
[1722110111965,0.439753,68220.0,68219.0,0.000924]
[1722110112192,0.11015299,68220.0,68219.0,0.000924]
[1722110112419,0.08720225,68220.0,68219.0,0.000924]
[1722110112641,0.04425495,68220.0,68219.0,0.733856]
[1722110112864,0.04350535,68234.0,68220.0,0.1419]
[1722110113100,0.08919064,68233.0,68227.0,0.07512979]
[1722110113325,0.08919064,68232.0,68227.0,0.08264277]
[1722110113559,0.04354146,68238.0,68227.0,0.22921077]
[1722110113560,0.04543457,68231.0,68227.0,0.22921077]
[1722110113813,0.04543457,68230.0,68227.0,0.08264277]
[1722110114030,0.146548,68237.0,68220.0,0.0788]
[1722110114031,0.04543457,68229.0,68220.0,0.0788]
[1722110114255,0.04543457,68228.0,68225.0,0.07512979]
[1722110114494,0.04543457,68227.0,68225.0,0.07512979]
[1722110114712,0.04543457,68226.0,68225.0,0.07512979]
[1722110115377,0.04543457,68226.0,68225.0,0.07462979]